fUSD/lending_fUSD_20251013
["ID","MTS","AMOUNT","RATE_DAILY","PERIOD"]
[391102933,1760346566082,-15000.0,0.00015,2]
[391102935,1760346566409,-15000.0,0.00015,2]
[391102936,1760346567130,-949.0,0.00015,2]
[391102937,1760346567154,-14051.0,0.00015,2]
[391102939,1760346567988,-15000.0,0.00015,2]
[391102940,1760346568320,-15000.0,0.00015,2]
[391102941,1760346568865,-15000.0,0.00015,2]
[391102942,1760346570814,-15000.0,0.00015,2]
[391102943,1760346571173,-15000.0,0.00015,2]
[391102944,1760346571554,-15000.0,0.00015,2]
[391102945,1760346571898,-15000.0,0.00015,2]
[391102946,1760346572403,-15000.0,0.00015,2]
[391102947,1760346572845,-15000.0,0.00015,2]
[391102948,1760346573311,-15000.0,0.00015,2]
[391102950,1760346605128,361.96,7.33e-05,2]
[391102951,1760346605339,361.96,7.716e-05,2]
[391102952,1760346605550,361.96,8.102e-05,2]
[391102953,1760346605755,361.96,8.488e-05,2]
[391102954,1760346605962,361.96,8.874e-05,2]
[391102955,1760346606167,361.96,9.259e-05,2]
[391102956,1760346606362,361.96,9.645e-05,2]
[391102957,1760346606554,361.96,0.00010031,2]
[391102958,1760346606747,361.96,0.00010417,2]
[391102959,1760346607028,361.96,0.00010803,2]
[391102960,1760346607238,361.96,0.00011189,2]
[391102961,1760346607494,361.96,0.00011574,2]
[391102962,1760346607749,361.96,0.0001196,2]
[391102963,1760346607996,361.96,0.00012346,2]
[391102965,1760346631725,-361.96,0.00012732,2]
[391102966,1760346631737,-361.96,0.00013118,2]
[391102967,1760346631747,-361.96,0.00013503,2]
[391102968,1760346631757,-361.96,0.00013889,2]
[391102969,1760346631767,-361.96,0.00014275,2]
[391102970,1760346631778,-361.96,0.00014661,2]
[391102971,1760346631788,-5000.0,0.000149,2]
[391102972,1760346631797,-539.16080225,0.00014973,2]
[391102973,1760346631807,-500.0,0.00014973,2]
[391102974,1760346631819,-500.0,0.00014973,2]
[391102975,1760346631829,-429.62383105,0.00014973,2]
[391102976,1760346631839,-212.0,0.00014985,2]
[391102977,1760346631849,-346.59102667,0.0001499,2]
[391102978,1760346631859,-1200.0,0.00014999,2]
[391102979,1760346631868,-300.0,0.00014999,2]
[391102980,1760346631878,-291.31306157,0.00014999,2]
[391102981,1760346631887,-118904.10582546,0.00015,2]
[391102982,1760346631899,-21485.44789575,0.00015,2]
[391102983,1760346631910,-19532.56441549,0.00015,2]
[391102984,1760346631921,-387.4358884,0.00015,2]
[391102985,1760346631933,-3075.24414114,0.00015,2]
[391102986,1760346631944,-326.43103357,0.00015,2]
[391102987,1760346631955,-27242.283309,0.00015,2]
[391102998,1760346637675,-988.41135837,0.00015,2]
[391102999,1760346637783,-2565.17802781,0.00015,2]
[391103000,1760346637796,-708.14120299,0.00015,2]
[391103001,1760346637807,-14438.82183443,0.00015,2]
[391103002,1760346637818,-9864.83172179,0.00015,2]
[391103003,1760346637829,-22363.50000005,0.00015,2]
[391103004,1760346637888,-7579.18725721,0.00015,2]
[391103010,1760346639724,-373.19516286,0.00015,2]
[391103011,1760346639779,-2000.0,0.00015,2]
[391103012,1760346639832,-9999.999837,0.00015,2]
[391103014,1760346641069,-39703.95095904,0.00015,2]
[391103019,1760346642968,-403.88544408,0.00015,2]
[391103020,1760346643022,-38027.33208003,0.00015,2]
[391103021,1760346643076,-1979.3092199,0.00015,2]
[391103022,1760346643087,-417.417,0.00015,2]
[391103023,1760346643131,-205501.14470309,0.00015,2]
[391103024,1760346643143,-288719.98785924,0.00015,2]
[391103025,1760346643155,-111733.58302559,0.00015,2]
[391103030,1760346646127,-1156.316,0.00014807,2]
[391103031,1760346646136,-566.37945434,0.00015,2]
[391103032,1760346646147,-107440.18433445,0.00015,2]
[391103033,1760346646157,-10179.969806,0.00015,2]
[391103034,1760346646435,-84207.63910378,0.00015,2]
[391103035,1760346646473,-353195.62671973,0.00015,2]
[391103130,1760347837877,-250.0,0.00014107,2]
[391103131,1760347837887,-166.66,0.00014524,2]
[391103132,1760347837896,-150.0,0.00014585,2]
[391103133,1760347837905,-87.90097149,0.00014672,2]
[391103134,1760347837916,-1916.25,0.00014672,2]
[391103135,1760347837989,-551.13820975,0.00014672,2]
[391103348,1760347840104,-308.53488699,0.00014672,2]
[391103355,1760347840160,-413.35593177,0.00014672,2]
[391103358,1760347840175,-2545.0,0.00014807,2]
[391103360,1760347840185,-869.80787591,0.0001485,2]
[391103362,1760347840195,-1200.0,0.00014898,2]
[391103364,1760347840204,-300.0,0.00014898,2]
[391103366,1760347840213,-300.0,0.00014898,2]
[391103368,1760347840222,-2022.026,0.00014899,2]
[391103370,1760347840232,-169.225,0.00014899,2]
[391103372,1760347840241,-150.0,0.00014899,2]
[391103374,1760347840250,-258.00558774,0.000149,2]
[391103376,1760347840260,-2955.57960458,0.000149,2]
[391103565,1760347843481,-416.416,0.0001409,2]
[391103566,1760347843493,-881.6423926,0.0001409,2]
[391103567,1760347843507,-1269.99657551,0.0001409,2]
[391103568,1760347843516,-2044.42039542,0.000149,2]
[391103569,1760347843525,-14720.34657258,0.000149,2]
[391103570,1760347843536,-23097.11507882,0.000149,2]
[391103571,1760347843545,-294.2692288,0.000149,2]
[391103572,1760347843554,-157.69349699,0.000149,2]
[391103573,1760347843563,-169.01460954,0.000149,2]
[391103574,1760347843572,-500.0,0.00014973,2]
[391103575,1760347843581,-5986.99,0.0001499,2]
[391103576,1760347843590,-5986.99,0.0001499,2]
[391103577,1760347843599,-231.06068445,0.0001499,2]
[391103578,1760347843608,-151.0,0.00014991,2]
[391103579,1760347843617,-151.0,0.00014991,2]
[391103580,1760347843626,-151.0,0.00014991,2]
[391103581,1760347843635,-151.0,0.00014991,2]
[391103582,1760347843644,-151.0,0.00014991,2]
[391103583,1760347843654,-1230.60568295,0.00014991,2]
[391103584,1760347843663,-151.0,0.00014991,2]
[391103585,1760347843673,-151.0,0.00014991,2]
[391103586,1760347843682,-151.0,0.00014991,2]
[391103587,1760347843691,-151.0,0.00014991,2]
[391103588,1760347843700,-151.0,0.00014991,2]
[391103589,1760347843710,-151.0,0.00014991,2]
[391103590,1760347843719,-500.0,0.00014991,2]
[391103591,1760347843728,-695.39793187,0.00014991,2]
[391103592,1760347843738,-500.0,0.00014991,2]
[391103593,1760347843747,-500.0,0.00014991,2]
[391103594,1760347843757,-500.0,0.00014991,2]
[391103595,1760347843767,-500.0,0.00014991,2]
[391103596,1760347843776,-500.0,0.00014991,2]
[391103597,1760347843785,-500.0,0.00014991,2]
[391103598,1760347843794,-200.0,0.00014991,2]
[391103600,1760347843803,-800.11,0.00014991,2]
[391103602,1760347843813,-151.0,0.00014997,2]
[391103603,1760347843822,-500.0,0.00014999,2]
[391103604,1760347843831,-382.41992036,0.00014999,2]
[391103605,1760347843839,-770.0,0.00015,2]
[391103606,1760347843848,-162.0,0.00015,2]
[391103607,1760347843857,-125753.70136127,0.00015,2]
[391103632,1760347845976,-797.34,0.00013699,2]
[391103633,1760347845989,-16075.91964214,0.00015,2]
[391103634,1760347846002,-6577.76888468,0.00015,2]
[391103635,1760347846031,-11635.34695031,0.00015,2]
[391103662,1760349032244,-500.0,0.00013555,2]
[391103663,1760349032254,-35.2277302,0.00013566,2]
[391103664,1760349032268,-567.78010029,0.00013566,2]
[391103690,1760349032630,-1396.99216951,0.00013566,2]
[391103692,1760349032639,-794.1,0.00013578,2]
[391103695,1760349032649,-161.89,0.00013606,2]
[391103697,1760349032658,-282.5423302,0.00013613,2]
[391103699,1760349032667,-250.0,0.00013631,7]
[391103701,1760349032676,-2751.0,0.00013694,2]
[391103703,1760349032685,-1500.0,0.00013696,2]
[391103705,1760349032694,-549.97741146,0.00013698,2]
[391103707,1760349032703,-195.0,0.00013699,2]
[391103709,1760349032712,-250.0,0.00013702,2]
[391103711,1760349032721,-1200.0,0.00013707,2]
[391103713,1760349032730,-300.0,0.0001372,2]
[391103715,1760349032739,-300.0,0.0001372,2]
[391103717,1760349032748,-1533.15,0.00013721,2]
[391103719,1760349032757,-4999.81,0.00013808,2]
[391103721,1760349032766,-1000.0,0.00013963,2]
[391103723,1760349032775,-263.89,0.0001406,2]
[391103725,1760349032783,-1617.621,0.00014078,2]
[391103727,1760349032793,-169.225,0.00014078,2]
[391103729,1760349032802,-10100.71983265,0.00014078,2]
[391103731,1760349032813,-641.43792491,0.00014078,2]
[391103733,1760349032824,-262.94484,0.00014078,2]
[391103735,1760349032835,-11206.03740244,0.00014078,2]
[391103737,1760349032845,-243.36,0.00014109,2]
[391103739,1760349032854,-666.0,0.0001414,3]
[391103741,1760349032863,-779.93306727,0.0001417,2]
[391103846,1760349038052,-1650.11734026,0.0001417,2]
[391103847,1760349038107,-1923.56255802,0.0001417,2]
[391103850,1760349038164,-1352.92703445,0.0001417,2]
[391103851,1760349038174,-1053.99840832,0.00014236,2]
[391103852,1760349038184,-248.71531821,0.00014236,2]
[391103853,1760349038193,-173.0,0.00014268,2]
[391103854,1760349038203,-173.0,0.00014312,2]
[391103855,1760349038212,-173.0,0.00014339,2]
[391103856,1760349038222,-173.0,0.00014345,2]
[391103857,1760349038231,-150.0,0.00014397,2]
[391103858,1760349038241,-828.0,0.00014398,2]
[391103859,1760349038251,-233.51,0.00014516,2]
[391103860,1760349038261,-168.0,0.00014599,2]
[391103861,1760349038270,-168.0,0.00014681,2]
[391103862,1760349038283,-168.0,0.00014716,2]
[391103863,1760349038292,-168.0,0.00014742,2]
[391103864,1760349038301,-168.0,0.00014753,2]
[391103865,1760349038310,-168.0,0.00014778,2]
[391103866,1760349038320,-326.98056402,0.000148,4]
[391103867,1760349038330,-571.0,0.00014819,2]
[391103868,1760349038343,-604.0,0.00014819,2]
[391103869,1760349038353,-1309.0,0.00014819,2]
[391103870,1760349038364,-1587.0,0.00014819,2]
[391103871,1760349038374,-816.0,0.00014819,2]
[391103872,1760349038384,-150.0,0.00014819,2]
[391103873,1760349038394,-901.0,0.00014819,2]
[391103874,1760349038403,-709.23027471,0.00014819,2]
[391103875,1760349038415,-1835.76972529,0.00014819,2]
[391103876,1760349038426,-151.0,0.00014891,2]
[391103878,1760349038435,-151.0,0.00014891,2]
[391103880,1760349038446,-151.0,0.00014891,2]
[391103882,1760349038455,-151.0,0.00014891,2]
[391103884,1760349038465,-200.0,0.00014891,2]
[391103886,1760349038475,-151.0,0.00014891,2]
[391103887,1760349038485,-151.0,0.00014891,2]
[391103889,1760349038495,-151.0,0.00014891,2]
[391103891,1760349038505,-151.0,0.00014891,2]
[391103892,1760349038515,-322.6107,0.00014891,2]
[391103893,1760349038526,-151.0,0.00014891,2]
[391103894,1760349038537,-646.65982734,0.00014891,2]
[391103895,1760349038547,-200.0,0.00014891,2]
[391103896,1760349038557,-500.0,0.00014891,2]
[391103897,1760349038567,-500.0,0.00014891,2]
[391103898,1760349038577,-151.0,0.00014891,2]
[391103899,1760349038587,-500.0,0.00014891,2]
[391103900,1760349038598,-151.0,0.00014891,2]
[391103901,1760349038608,-500.0,0.00014891,2]
[391103902,1760349038619,-151.0,0.00014891,2]
[391103903,1760349038629,-500.0,0.00014891,2]
[391103904,1760349038640,-2000.0,0.00014891,2]
[391103905,1760349038649,-151.0,0.00014891,2]
[391103906,1760349038659,-2000.0,0.00014891,2]
[391103907,1760349038669,-151.0,0.00014891,2]
[391103908,1760349038678,-151.0,0.00014891,2]
[391103909,1760349038687,-151.0,0.00014891,2]
[391103910,1760349038697,-2000.0,0.00014891,2]
[391103911,1760349038706,-2000.0,0.00014891,2]
[391103912,1760349038716,-2000.0,0.00014891,2]
[391103913,1760349038726,-500.0,0.00014899,2]
[391103914,1760349038736,-335.88267554,0.00014899,2]
[391103915,1760349038745,-500.0,0.00014899,2]
[391103916,1760349038755,-500.0,0.00014899,2]
[391103917,1760349038765,-500.0,0.00014899,2]
[391103918,1760349038774,-500.0,0.00014899,2]
[391103919,1760349038784,-500.0,0.00014899,2]
[391103920,1760349038794,-500.0,0.00014899,2]
[391103921,1760349038804,-500.0,0.00014899,2]
[391103922,1760349038814,-623.70687538,0.00014899,2]
[391103923,1760349038824,-500.0,0.00014899,2]
[391103924,1760349038834,-650.0,0.00014899,2]
[391103925,1760349038845,-221.14764666,0.000149,2]
[391103926,1760349038855,-300.0,0.000149,2]
[391103927,1760349038866,-1000.0,0.000149,2]
[391103928,1760349038877,-8771.97353485,0.000149,2]
[391103929,1760349038890,-12015.43003607,0.000149,2]
[391103930,1760349038900,-5000.0,0.000149,2]
[391103931,1760349038911,-13339.31865975,0.000149,2]
[391103932,1760349038921,-165.01510928,0.000149,2]
[391103933,1760349038931,-2000.0,0.0001491,2]
[391103934,1760349038940,-3074.0,0.00014938,2]
[391103935,1760349038950,-24721.7398355,0.00014965,2]
[391103936,1760349038960,-3378.07621,0.00014965,2]
[391103937,1760349038970,-597.69949941,0.00014973,2]
[391103938,1760349038980,-500.0,0.00014973,2]
[391103939,1760349038990,-501.73894675,0.00014973,2]
[391103940,1760349038999,-500.0,0.00014973,2]
[391103941,1760349039009,-500.0,0.00014973,2]
[391103942,1760349039018,-503.19308079,0.00014973,2]
[391103943,1760349039028,-500.0,0.00014973,2]
[391103944,1760349039037,-500.0,0.00014973,2]
[391103945,1760349039048,-500.0,0.00014973,2]
[391103946,1760349039058,-500.0,0.00014973,2]
[391103947,1760349039068,-500.0,0.00014973,2]
[391103948,1760349039077,-500.0,0.00014973,2]
[391103949,1760349039087,-500.0,0.00014973,2]
[391103950,1760349039101,-500.0,0.00014973,2]
[391103951,1760349039110,-156.47949308,0.00014973,2]
[391103952,1760349039120,-500.0,0.00014973,2]
[391103953,1760349039130,-500.0,0.00014973,2]
[391103954,1760349039140,-500.0,0.00014973,2]
[391103955,1760349039150,-500.27909832,0.00014973,2]
[391103956,1760349039159,-500.0,0.00014973,2]
[391103957,1760349039169,-154.04045629,0.0001499,2]
[391103958,1760349039180,-854.77,0.00014991,2]
[391103959,1760349039189,-151.0,0.00014997,2]
[391103960,1760349039200,-442.48878763,0.00014999,5]
[391103961,1760349039209,-500.0,0.00014999,2]
[391103962,1760349039220,-150.0,0.00014999,2]
[391103963,1760349039229,-150.0,0.00014999,2]
[391103964,1760349039240,-500.0,0.00014999,2]
[391103965,1760349039250,-942.0,0.00014999,2]
[391103966,1760349039260,-150.0,0.00014999,2]
[391103967,1760349039271,-150.0,0.00014999,2]
[391103968,1760349039289,-150.0,0.00014999,2]
[391103969,1760349039301,-459.0,0.00014999,2]
[391103970,1760349039311,-150.0,0.00014999,2]
[391103971,1760349039320,-150.0,0.00014999,2]
[391103972,1760349039330,-150.0,0.00014999,2]
[391103973,1760349039340,-155.0,0.00014999,2]
[391103974,1760349039350,-150.0,0.00014999,2]
[391103975,1760349039360,-150.0,0.00014999,2]
[391103976,1760349039371,-150.0,0.00014999,2]
[391103977,1760349039381,-500.0,0.00014999,2]
[391103978,1760349039391,-150.0,0.00014999,2]
[391103979,1760349039401,-150.0,0.00014999,2]
[391103980,1760349039411,-150.0,0.00014999,2]
[391103981,1760349039421,-500.0,0.00014999,2]
[391103982,1760349039431,-1115.0,0.00015,2]
[391103983,1760349039440,-41032.41920609,0.00015,2]
[391103984,1760349039452,-2461.0065398,0.00015,2]
[391103985,1760349040100,-173.0,0.00014181,2]
[391103986,1760349040110,-235.41538304,0.000149,2]
[391103987,1760349040120,-3548.35211806,0.00015,2]
[391103988,1760349040130,-18242.42573903,0.00015,2]
[391103989,1760349040207,-337989.35528714,0.00015,2]
[391103990,1760349040220,-155154.53140332,0.00015,2]
[391103991,1760349040231,-431.97,0.00015,2]
[391103992,1760349040261,-1125.62232201,0.00015,2]
[391103993,1760349040373,-332.57952245,0.00015,2]
[391104011,1760349043470,-197.45769526,0.000149,2]
[391104012,1760349043480,-54824.07114872,0.00015,2]
[391104013,1760349043524,-150461.22919773,0.00015,2]
[391104014,1760349043534,-2000.0,0.00015,2]
[391104015,1760349043543,-2000.0,0.00015,2]
[391104016,1760349043552,-2000.0,0.00015,2]
[391104017,1760349043562,-675.8,0.00015,2]
[391104018,1760349043572,-500.0,0.00015,2]
[391104019,1760349043581,-399921.77706945,0.00015,2]
[391104041,1760349046208,-173.0,0.00014262,2]
[391104042,1760349046218,-12326.2,0.00015,2]
[391104043,1760349046229,-17295.0,0.00015,2]
[391104044,1760349046313,-441.67729988,0.00015,2]
[391104065,1760349266206,160.36,7.053e-05,2]
[391104066,1760349266445,160.36,8.464e-05,2]
[391104067,1760349266588,160.36,9.875e-05,2]
[391104068,1760349266785,160.36,0.00011286,2]
[391104078,1760349347222,448.63,0.00012517,2]
[391104112,1760349737274,-160.36,0.00012696,2]
[391104113,1760349737294,-264.96629642,0.00013,2]
[391104114,1760349741146,-201.99222168,0.00013,2]
[391104115,1760349743967,-427.55397517,0.00013,2]
[391104116,1760349748819,-369.54414014,0.00012999,2]
[391104117,1760349750533,-214.71071889,0.00012999,2]
[391104118,1760349762568,-615.74514097,0.00012999,2]
[391104119,1760349762591,-16084.25485903,0.00013,2]
[391104121,1760349837721,5007.53238784,0.00012519,2]
[391104130,1760350096824,-377.86536425,0.00012935,2]
[391104133,1760350217630,-203.86702495,0.0001287,2]
[391104134,1760350217653,-111.6654346,0.00012935,2]
[391104147,1760350232255,-94.72406015,0.00012935,2]
[391104149,1760350232264,-27.91233156,0.00013,2]
[391104151,1760350232274,-187.25495008,0.00013315,2]
[391104153,1760350232283,-775.75877493,0.00013546,2]
[391104156,1760350232292,-2599.61,0.00013561,2]
[391104158,1760350232302,-1200.0,0.00013637,2]
[391104160,1760350232311,-6723.91856128,0.00013639,2]
[391104165,1760350232359,-666.0,0.00013639,2]
[391104170,1760350232416,-596.60464793,0.00013639,2]
[391104172,1760350232427,-2372.49430303,0.00013639,2]
[391104331,1760350238234,-348.9,0.00013639,2]
[391104332,1760350238246,-393.69097478,0.00013639,2]
[391104333,1760350238258,-339.88265974,0.00013639,2]
[391104334,1760350238270,-363.50002513,0.00013639,2]
[391104335,1760350238339,-6760.27468687,0.00013639,2]
[391104336,1760350238447,-91.15414124,0.00013639,2]
[391104337,1760350238457,-474.58,0.00013699,2]
[391104338,1760350238468,-150.0,0.00013712,2]
[391104339,1760350238478,-605.0,0.00013982,2]
[391104340,1760350238487,-500.0,0.0001399,2]
[391104341,1760350238498,-500.0,0.0001399,2]
[391104342,1760350238507,-500.0,0.0001399,2]
[391104343,1760350238517,-605.0,0.00014075,2]
[391104344,1760350238526,-605.0,0.00014089,2]
[391104345,1760350238536,-160.36,0.00014107,2]
[391104346,1760350238545,-200.0,0.00014107,2]
[391104347,1760350238554,-808.18,0.0001411,2]
[391104348,1760350238563,-171.0,0.00014204,2]
[391104349,1760350238572,-1556.08464792,0.00014228,2]
[391104350,1760350238583,-943.91535208,0.00014228,2]
[391104351,1760350238593,-2500.0,0.00014228,2]
[391104352,1760350238606,-2500.0,0.00014228,2]
[391104354,1760350238615,-1916.25,0.00014228,2]
[391104356,1760350238624,-250.0,0.00014228,2]
[391104357,1760350238633,-195.0,0.00014228,2]
[391104358,1760350238643,-150.0,0.00014299,2]
[391104359,1760350238652,-195.0,0.000143,2]
[391104360,1760350238661,-2000.0,0.000143,2]
[391104361,1760350238671,-250.0,0.000143,2]
[391104362,1760350238681,-2000.0,0.000143,2]
[391104363,1760350238690,-300.0,0.000143,2]
[391104365,1760350238699,-818.84619038,0.00014397,2]
[391104368,1760350240186,-2448.15380962,0.00014397,2]
[391104369,1760350240196,-186.8,0.00014415,2]
[391104370,1760350240206,-171.0,0.00014438,2]
[391104371,1760350240216,-514.569,0.00014631,2]
[391104372,1760350240225,-305.631,0.00014631,2]
[391104373,1760350240234,-130.79044111,0.0001485,2]
[391104374,1760350240246,-1945.06347889,0.0001485,2]
[391104375,1760350240255,-151.0,0.00014882,2]
[391104376,1760350240264,-151.0,0.00014882,2]
[391104377,1760350240274,-151.0,0.00014882,2]
[391104378,1760350240283,-151.0,0.00014882,2]
[391104379,1760350240292,-151.0,0.00014882,2]
[391104380,1760350240301,-151.0,0.00014882,2]
[391104381,1760350240310,-151.0,0.00014882,2]
[391104382,1760350240320,-151.0,0.00014882,2]
[391104383,1760350240329,-151.0,0.00014882,2]
[391104384,1760350240339,-151.0,0.00014882,2]
[391104385,1760350240348,-322.6107,0.00014882,2]
[391104386,1760350240358,-151.0,0.00014882,2]
[391104387,1760350240367,-151.0,0.00014882,2]
[391104388,1760350240377,-151.0,0.00014882,2]
[391104389,1760350240386,-151.0,0.00014882,2]
[391104390,1760350240395,-151.0,0.00014882,2]
[391104391,1760350240404,-151.0,0.00014882,2]
[391104392,1760350240413,-200.0,0.00014882,2]
[391104393,1760350240422,-200.0,0.00014882,2]
[391104394,1760350240431,-2000.0,0.00014882,2]
[391104395,1760350240440,-2000.0,0.00014882,2]
[391104396,1760350240450,-1996.26990264,0.00014882,2]
[391104397,1760350240459,-2000.0,0.00014882,2]
[391104398,1760350240469,-2000.0,0.00014882,2]
[391104399,1760350240478,-2000.0,0.00014882,2]
[391104400,1760350240487,-151.0,0.00014882,2]
[391104401,1760350240496,-151.0,0.00014882,2]
[391104402,1760350240506,-151.0,0.00014882,2]
[391104403,1760350240515,-151.0,0.00014882,2]
[391104404,1760350240524,-151.0,0.00014882,2]
[391104405,1760350240534,-151.0,0.00014882,2]
[391104406,1760350240543,-151.0,0.00014882,2]
[391104407,1760350240553,-151.0,0.00014882,2]
[391104408,1760350240567,-151.0,0.00014882,2]
[391104409,1760350240581,-151.0,0.00014882,2]
[391104410,1760350240591,-151.0,0.00014882,2]
[391104411,1760350240605,-151.0,0.00014882,2]
[391104412,1760350240614,-151.0,0.00014882,2]
[391104413,1760350240625,-151.0,0.00014882,2]
[391104414,1760350240635,-151.0,0.00014882,2]
[391104415,1760350240644,-151.0,0.00014882,2]
[391104416,1760350240653,-151.0,0.00014882,2]
[391104417,1760350240662,-151.0,0.00014882,2]
[391104418,1760350240672,-167.58794574,0.00014882,2]
[391104419,1760350240682,-1000.0,0.000149,2]
[391104420,1760350240691,-5000.0,0.000149,2]
[391104421,1760350240701,-2869.46797273,0.000149,2]
[391104422,1760350240721,-492.57,0.000149,2]
[391104423,1760350240733,-8643.348821,0.000149,2]
[391104424,1760350240743,-172.77548337,0.000149,2]
[391104425,1760350240753,-173.26509927,0.000149,2]
[391104426,1760350240762,-1294.097,0.0001491,2]
[391104427,1760350240771,-169.225,0.0001491,2]
[391104429,1760350240781,-500.0,0.00014973,2]
[391104430,1760350240791,-500.0,0.00014973,2]
[391104431,1760350240800,-500.0,0.00014973,2]
[391104432,1760350240810,-500.0,0.00014973,2]
[391104433,1760350240820,-500.0,0.00014973,2]
[391104434,1760350240829,-500.0,0.00014973,2]
[391104435,1760350240839,-500.0,0.00014973,2]
[391104436,1760350240848,-500.0,0.00014973,2]
[391104437,1760350240857,-500.0,0.00014973,2]
[391104438,1760350240867,-500.0,0.00014973,2]
[391104439,1760350240876,-500.0,0.00014973,2]
[391104440,1760350240886,-500.0,0.00014973,2]
[391104441,1760350240896,-500.0,0.00014973,2]
[391104442,1760350240907,-500.0,0.00014973,2]
[391104443,1760350240916,-500.0,0.00014973,2]
[391104444,1760350240926,-1175.32,0.00014991,2]
[391104445,1760350240935,-151.0,0.00014997,2]
[391104446,1760350240945,-151.0,0.00014997,2]
[391104447,1760350240954,-153.50434865,0.00014997,2]
[391104448,1760350240964,-500.0,0.00014998,2]
[391104449,1760350240974,-500.0,0.00014998,2]
[391104450,1760350240983,-500.0,0.00014998,2]
[391104451,1760350240994,-500.0,0.00014998,2]
[391104452,1760350241003,-500.0,0.00014998,2]
[391104453,1760350241013,-500.0,0.00014998,2]
[391104454,1760350241022,-309.23515061,0.00014998,2]
[391104455,1760350241031,-500.0,0.00014998,2]
[391104456,1760350241041,-500.0,0.00014998,2]
[391104457,1760350241051,-500.0,0.00014998,2]
[391104458,1760350241061,-500.0,0.00014999,2]
[391104459,1760350241070,-150.0,0.00014999,2]
[391104460,1760350241079,-163.83312654,0.00014999,2]
[391104461,1760350241088,-500.0,0.00014999,2]
[391104462,1760350241098,-150.0,0.00014999,2]
[391104463,1760350241106,-150.0,0.00014999,2]
[391104464,1760350241116,-500.0,0.00014999,2]
[391104465,1760350241126,-150.0,0.00014999,2]
[391104466,1760350241136,-150.0,0.00014999,2]
[391104467,1760350241146,-440.0,0.00014999,2]
[391104468,1760350241156,-150.0,0.00014999,2]
[391104469,1760350241167,-150.0,0.00014999,2]
[391104470,1760350241177,-150.0,0.00014999,2]
[391104471,1760350241186,-500.0,0.00014999,2]
[391104472,1760350241195,-1209.0,0.00014999,2]
[391104473,1760350241206,-903.0,0.00014999,2]
[391104474,1760350241215,-288.90040802,0.00014999,2]
[391104475,1760350241224,-150.0,0.00014999,2]
[391104476,1760350241233,-150.0,0.00014999,2]
[391104477,1760350241243,-500.0,0.00014999,2]
[391104478,1760350241252,-150.0,0.00014999,2]
[391104479,1760350241261,-150.0,0.00014999,2]
[391104480,1760350241270,-150.0,0.00014999,2]
[391104481,1760350241279,-150.0,0.00014999,2]
[391104482,1760350241288,-150.0,0.00014999,2]
[391104483,1760350241297,-150.0,0.00014999,2]
[391104484,1760350241306,-305691.85084968,0.00015,2]
[391104485,1760350241318,-8671.83537131,0.00015,2]
[391104486,1760350241329,-105593.3427176,0.00015,2]
[391104487,1760350241341,-105614.41753268,0.00015,2]
[391104488,1760350241350,-500.0,0.00015,2]
[391104489,1760350241358,-500.0,0.00015,2]
[391104490,1760350241368,-500.0,0.00015,2]